[Event "Titled Tuesday Blitz February 14 Late 2023"]
[White "Aguilar, Juan"]
[Black "Davalos Prieto, Abel Justo"]
[WhiteFideId "3800091"]
[BlackFideId "5102766"]
[WhiteElo "2254"]
[BlackElo "2029"]
[Result "1/2-1/2"]
[Round "04"]
[TimeControl "180+2"]
[Date "2023.02.14"]
[WhiteClock "0:00:23"]
[BlackClock "0:00:08"]

1. Nf3 {[%clk 0:03:00]}  c5 {[%clk 0:02:57]} 2. g3 {[%clk 0:02:59]}  g6 {[%clk 0:02:56]} 3. Bg2 {[%clk 0:02:59]}  Bg7 {[%clk 0:02:56]} 4. O-O {[%clk 0:02:59]}  Nc6 {[%clk 0:02:56]} 5. c4 {[%clk 0:02:55]}  d6 {[%clk 0:02:56]} 6. Nc3 {[%clk 0:02:54]}  Bd7 {[%clk 0:02:55]} 7. a3 {[%clk 0:02:48]}  h5 {[%clk 0:02:55]} 8. h4 {[%clk 0:02:46]}  Nh6 {[%clk 0:02:52]} 9. Rb1 {[%clk 0:02:45]}  Nf5 {[%clk 0:02:51]} 10. b4 {[%clk 0:02:44]}  b6 {[%clk 0:02:46]} 11. b5 {[%clk 0:02:38]}  Na5 {[%clk 0:02:45]} 12. Qa4 {[%clk 0:02:28]}  a6 {[%clk 0:02:43]} 13. Bb2 {[%clk 0:02:12]}  axb5 {[%clk 0:02:42]} 14. Nxb5 {[%clk 0:02:10]}  O-O {[%clk 0:02:38]} 15. Qc2 {[%clk 0:02:03]}  Bxb5 {[%clk 0:02:22]} 16. cxb5 {[%clk 0:02:03]}  Ra7 {[%clk 0:02:19]} 17. Bxg7 {[%clk 0:01:59]}  Kxg7 {[%clk 0:02:17]} 18. Qc3+ {[%clk 0:01:44]}  e5 {[%clk 0:02:16]} 19. e3 {[%clk 0:01:41]}  Qf6 {[%clk 0:02:13]} 20. Rfd1 {[%clk 0:01:38]}  Nb7 {[%clk 0:02:06]} 21. d4 {[%clk 0:01:36]}  exd4 {[%clk 0:02:00]} 22. exd4 {[%clk 0:01:36]}  Rfa8 {[%clk 0:01:59]} 23. Ra1 {[%clk 0:01:28]}  Nd8 {[%clk 0:01:46]} 24. Ng5 {[%clk 0:01:25]}  cxd4 {[%clk 0:01:44]} 25. Qd3 {[%clk 0:01:16]}  Rc8 {[%clk 0:01:42]} 26. Ne4 {[%clk 0:01:15]}  Qe5 {[%clk 0:01:38]} 27. Bh3 {[%clk 0:01:10]}  Ne6 {[%clk 0:01:34]} 28. Bxf5 {[%clk 0:01:08]}  gxf5 {[%clk 0:01:32]} 29. Ng5 {[%clk 0:01:06]}  Ra4 {[%clk 0:01:24]} 30. Re1 {[%clk 0:01:02]}  Qd5 {[%clk 0:01:23]} 31. Nxe6+ {[%clk 0:00:57]}  fxe6 {[%clk 0:01:22]} 32. Qe2 {[%clk 0:00:57]}  f4 {[%clk 0:01:14]} 33. Qxe6 {[%clk 0:00:55]}  Qxe6 {[%clk 0:01:13]} 34. Rxe6 {[%clk 0:00:56]}  fxg3 {[%clk 0:01:09]} 35. fxg3 {[%clk 0:00:54]}  Rd8 {[%clk 0:01:08]} 36. Rd1 {[%clk 0:00:51]}  Rxa3 {[%clk 0:01:07]} 37. Rxd4 {[%clk 0:00:48]}  Rxg3+ {[%clk 0:01:07]} 38. Kf2 {[%clk 0:00:47]}  Rg6 {[%clk 0:01:06]} 39. Rde4 {[%clk 0:00:42]}  Rxe6 {[%clk 0:01:04]} 40. Rxe6 {[%clk 0:00:42]}  Rf8+ {[%clk 0:01:01]} 41. Kg3 {[%clk 0:00:43]}  Rf6 {[%clk 0:01:01]} 42. Re7+ {[%clk 0:00:42]}  Kg6 {[%clk 0:01:00]} 43. Rb7 {[%clk 0:00:41]}  d5 {[%clk 0:00:44]} 44. Rd7 {[%clk 0:00:40]}  Re6 {[%clk 0:00:25]} 45. Rxd5 {[%clk 0:00:39]}  Rf6 {[%clk 0:00:22]} 46. Rg5+ {[%clk 0:00:38]}  Kh6 {[%clk 0:00:20]} 47. Rd5 {[%clk 0:00:32]}  Rg6+ {[%clk 0:00:20]} 48. Kf3 {[%clk 0:00:30]}  Rg4 {[%clk 0:00:19]} 49. Rd6+ {[%clk 0:00:30]}  Kg7 {[%clk 0:00:18]} 50. Rxb6 {[%clk 0:00:28]}  Rxh4 {[%clk 0:00:18]} 51. Rb7+ {[%clk 0:00:23]}  Kg6 {[%clk 0:00:17]} 52. Rb8 {[%clk 0:00:23]}  Rb4 {[%clk 0:00:17]} 53. b6 {[%clk 0:00:24]}  h4 {[%clk 0:00:15]} 54. b7 {[%clk 0:00:23]}  Kg7 {[%clk 0:00:15]} 55. Kg2 {[%clk 0:00:22]}  Kh7 {[%clk 0:00:12]} 56. Kh3 {[%clk 0:00:22]}  Kg7 {[%clk 0:00:13]} 57. Rc8 {[%clk 0:00:20]}  Rxb7 {[%clk 0:00:10]} 58. Kxh4 {[%clk 0:00:20]}  Rb4+ {[%clk 0:00:10]} 59. Kg3 {[%clk 0:00:21]}  Rb3+ {[%clk 0:00:10]} 60. Kf4 {[%clk 0:00:20]}  Rb4+ {[%clk 0:00:10]} 61. Ke3 {[%clk 0:00:21]}  Rb3+ {[%clk 0:00:10]} 62. Kd4 {[%clk 0:00:22]}  Rb4+ {[%clk 0:00:09]} 63. Rc4 {[%clk 0:00:22]}  Rxc4+ {[%clk 0:00:08]} 64. Kxc4 {[%clk 0:00:23]} 1/2-1/2


[Site "https://www.chess.com"]

[Event "Titled Tuesday Blitz February 14 Late 2023"]
[White "Bogaudinov, Rushan"]
[Black "Djordjevic, Dejan N"]
[WhiteFideId "4129288"]
[BlackFideId "913316"]
[WhiteElo "1939"]
[BlackElo "2167"]
[Result "0-1"]
[Round "04"]
[TimeControl "180+2"]
[Date "2023.02.14"]
[WhiteClock "0:00:10"]
[BlackClock "0:00:05"]

1. a3 {[%clk 0:02:39]}  Nf6 {[%clk 0:02:58]} 2. d4 {[%clk 0:02:38]}  e6 {[%clk 0:02:56]} 3. c4 {[%clk 0:02:38]}  b6 {[%clk 0:02:55]} 4. Nc3 {[%clk 0:02:38]}  Bb7 {[%clk 0:02:56]} 5. f3 {[%clk 0:02:38]}  d6 {[%clk 0:02:55]} 6. e4 {[%clk 0:02:39]}  Be7 {[%clk 0:02:55]} 7. b4 {[%clk 0:02:39]}  a5 {[%clk 0:02:53]} 8. Bb2 {[%clk 0:02:39]}  Nbd7 {[%clk 0:02:44]} 9. Bd3 {[%clk 0:02:38]}  O-O {[%clk 0:02:41]} 10. Nge2 {[%clk 0:02:38]}  c5 {[%clk 0:02:40]} 11. O-O {[%clk 0:02:30]}  axb4 {[%clk 0:02:35]} 12. axb4 {[%clk 0:02:30]}  cxb4 {[%clk 0:02:29]} 13. Nb5 {[%clk 0:02:30]}  e5 {[%clk 0:02:08]} 14. Ng3 {[%clk 0:02:25]}  g6 {[%clk 0:02:04]} 15. f4 {[%clk 0:02:23]}  exd4 {[%clk 0:01:59]} 16. Rxa8 {[%clk 0:02:13]}  Bxa8 {[%clk 0:01:56]} 17. Bxd4 {[%clk 0:02:10]}  Nc5 {[%clk 0:01:56]} 18. Qe2 {[%clk 0:02:04]}  Re8 {[%clk 0:01:50]} 19. f5 {[%clk 0:02:02]}  Nfd7 {[%clk 0:01:42]} 20. fxg6 {[%clk 0:01:59]}  hxg6 {[%clk 0:01:41]} 21. Qf3 {[%clk 0:01:56]}  Rf8 {[%clk 0:01:39]} 22. Bb1 {[%clk 0:01:53]}  Ne5 {[%clk 0:01:39]} 23. Qf4 {[%clk 0:01:50]}  Bg5 {[%clk 0:01:32]} 24. Qf2 {[%clk 0:01:48]}  Nxc4 {[%clk 0:01:30]} 25. Nf5 {[%clk 0:01:17]}  Nxe4 {[%clk 0:01:14]} 26. Qe2 {[%clk 0:01:02]}  Ned2 {[%clk 0:01:08]} 27. h4 {[%clk 0:00:53]}  Nxf1 {[%clk 0:01:01]} 28. hxg5 {[%clk 0:00:49]}  Qxg5 {[%clk 0:01:00]} 29. Ne7+ {[%clk 0:00:44]}  Kh7 {[%clk 0:00:52]} 30. Kxf1 {[%clk 0:00:31]}  Nd2+ {[%clk 0:00:48]} 31. Kg1 {[%clk 0:00:29]}  Nxb1 {[%clk 0:00:47]} 32. Nxd6 {[%clk 0:00:28]}  Qxg2+ {[%clk 0:00:42]} 33. Qxg2 {[%clk 0:00:27]}  Bxg2 {[%clk 0:00:41]} 34. Kxg2 {[%clk 0:00:27]}  Nc3 {[%clk 0:00:39]} 35. Nc4 {[%clk 0:00:22]}  Re8 {[%clk 0:00:28]} 36. Bf6 {[%clk 0:00:20]}  b5 {[%clk 0:00:24]} 37. Nd6 {[%clk 0:00:19]}  Rf8 {[%clk 0:00:24]} 38. Kf3 {[%clk 0:00:15]}  Kh6 {[%clk 0:00:12]} 39. Ke3 {[%clk 0:00:14]}  Kh5 {[%clk 0:00:10]} 40. Kd3 {[%clk 0:00:13]}  Rd8 {[%clk 0:00:07]} 41. Nc8 {[%clk 0:00:11]}  Rd7 {[%clk 0:00:06]} 42. Kc2 {[%clk 0:00:10]}  g5 {[%clk 0:00:05]} 43. Be5 {[%clk 0:00:10]}  Kg6 {[%clk 0:00:03]} 44. Nb6 {[%clk 0:00:09]}  Rd8 {[%clk 0:00:02]} 45. Kb3 {[%clk 0:00:09]}  f6 {[%clk 0:00:02]} 46. Bh2 {[%clk 0:00:07]}  f5 {[%clk 0:00:02]} 47. Kxb4 {[%clk 0:00:07]}  Ne4 {[%clk 0:00:01]} 48. Nxe4 {[%clk 0:00:05]}  Rd4+ {[%clk 0:00:01]} 49. Kxb5 {[%clk 0:00:05]}  Rxe4 {[%clk 0:00:02]} 50. Nd5 {[%clk 0:00:05]}  f4 {[%clk 0:00:02]} 51. Kc5 {[%clk 0:00:05]}  Kf5 {[%clk 0:00:01]} 52. Bg1 {[%clk 0:00:05]}  g4 {[%clk 0:00:02]} 53. Nc3 {[%clk 0:00:05]}  Re1 {[%clk 0:00:01]} 54. Kc4 {[%clk 0:00:06]}  Rxg1 {[%clk 0:00:01]} 55. Nd5 {[%clk 0:00:07]}  Rc1+ {[%clk 0:00:01]} 56. Kd4 {[%clk 0:00:06]}  Rd1+ {[%clk 0:00:01]} 57. Kc4 {[%clk 0:00:06]}  Rxd5 {[%clk 0:00:02]} 58. Kxd5 {[%clk 0:00:07]}  g3 {[%clk 0:00:02]} 59. Kd4 {[%clk 0:00:08]}  g2 {[%clk 0:00:03]} 60. Kd3 {[%clk 0:00:09]}  g1=Q {[%clk 0:00:03]} 61. Ke2 {[%clk 0:00:10]}  Qe3+ {[%clk 0:00:03]} 62. Kf1 {[%clk 0:00:10]}  Kg4 {[%clk 0:00:03]} 63. Kg2 {[%clk 0:00:10]}  Qe2+ {[%clk 0:00:03]} 64. Kh1 {[%clk 0:00:09]}  Kg3 {[%clk 0:00:04]} 65. Kg1 {[%clk 0:00:10]}  Qe1# {[%clk 0:00:05]} 0-1


[Site "https://www.chess.com"]

[Event "Titled Tuesday Blitz February 14 Late 2023"]
[White "FuenfgegenWilly"]
[Black "Jesusesmifuerza"]
[WhiteElo "2322"]
[BlackElo "2001"]
[Result "1-0"]
[Round "04"]
[TimeControl "180+2"]
[Date "2023.02.14"]
[WhiteClock "0:00:35"]
[BlackClock "0:00:20"]

1. e4 {[%clk 0:03:00]}  c5 {[%clk 0:02:59]} 2. Nc3 {[%clk 0:03:00]}  e6 {[%clk 0:02:59]} 3. f4 {[%clk 0:02:59]}  d5 {[%clk 0:02:56]} 4. Bb5+ {[%clk 0:02:59]}  Bd7 {[%clk 0:02:54]} 5. Bxd7+ {[%clk 0:03:00]}  Qxd7 {[%clk 0:02:53]} 6. d3 {[%clk 0:03:01]}  Nf6 {[%clk 0:02:49]} 7. Nf3 {[%clk 0:03:01]}  dxe4 {[%clk 0:02:49]} 8. dxe4 {[%clk 0:03:02]}  Qxd1+ {[%clk 0:02:48]} 9. Kxd1 {[%clk 0:03:02]}  Nc6 {[%clk 0:02:47]} 10. Be3 {[%clk 0:03:01]}  O-O-O+ {[%clk 0:02:47]} 11. Ke2 {[%clk 0:03:00]}  Be7 {[%clk 0:02:32]} 12. Rhd1 {[%clk 0:02:58]}  Rxd1 {[%clk 0:02:31]} 13. Rxd1 {[%clk 0:02:57]}  Rd8 {[%clk 0:02:30]} 14. Rxd8+ {[%clk 0:02:57]}  Kxd8 {[%clk 0:02:31]} 15. a3 {[%clk 0:02:57]}  b6 {[%clk 0:02:31]} 16. h3 {[%clk 0:02:55]}  h5 {[%clk 0:02:30]} 17. Ng5 {[%clk 0:02:52]}  Ke8 {[%clk 0:02:29]} 18. b3 {[%clk 0:02:35]}  Nd7 {[%clk 0:02:28]} 19. Nf3 {[%clk 0:02:34]}  f5 {[%clk 0:02:19]} 20. e5 {[%clk 0:02:30]}  Bd8 {[%clk 0:02:09]} 21. Kd3 {[%clk 0:02:30]}  a6 {[%clk 0:02:02]} 22. Nd2 {[%clk 0:02:20]}  b5 {[%clk 0:01:56]} 23. Na2 {[%clk 0:02:05]}  Ba5 {[%clk 0:01:49]} 24. c4 {[%clk 0:02:03]}  Bxd2 {[%clk 0:01:45]} 25. Kxd2 {[%clk 0:02:04]}  Kd8 {[%clk 0:01:30]} 26. Kc3 {[%clk 0:01:57]}  Kc7 {[%clk 0:01:28]} 27. cxb5 {[%clk 0:01:50]}  axb5 {[%clk 0:01:28]} 28. a4 {[%clk 0:01:51]}  bxa4 {[%clk 0:01:20]} 29. bxa4 {[%clk 0:01:52]}  Kb6 {[%clk 0:01:20]} 30. Nc1 {[%clk 0:01:48]}  Ka5 {[%clk 0:01:17]} 31. Kb3 {[%clk 0:01:37]}  Nd4+ {[%clk 0:01:16]} 32. Bxd4 {[%clk 0:01:26]}  cxd4 {[%clk 0:01:17]} 33. Nd3 {[%clk 0:01:15]}  Nb6 {[%clk 0:01:03]} 34. Nc5 {[%clk 0:01:14]}  d3 {[%clk 0:00:56]} 35. Nxe6 {[%clk 0:00:55]}  Nd5 {[%clk 0:00:35]} 36. Nxg7 {[%clk 0:00:41]}  Nxf4 {[%clk 0:00:32]} 37. e6 {[%clk 0:00:37]}  Nd5 {[%clk 0:00:28]} 38. Nxf5 {[%clk 0:00:37]}  d2 {[%clk 0:00:19]} 39. Kc2 {[%clk 0:00:36]}  Kxa4 {[%clk 0:00:20]} 40. Kxd2 {[%clk 0:00:35]}  Kb5 {[%clk 0:00:20]} 41. e7 {[%clk 0:00:35]}  Nxe7 {[%clk 0:00:20]} 42. Nxe7 {[%clk 0:00:35]}  Kc5 {[%clk 0:00:20]} 43. Ke3 {[%clk 0:00:33]}  Kd6 {[%clk 0:00:20]} 44. Kf4 {[%clk 0:00:34]}  Kxe7 {[%clk 0:00:20]} 45. Kg5 {[%clk 0:00:35]}  Ke6 {[%clk 0:00:20]} 46. Kxh5 {[%clk 0:00:35]}  Kf5 {[%clk 0:00:20]} 47. g4+ {[%clk 0:00:35]} 1-0


[Site "https://www.chess.com"]

[Event "Titled Tuesday Blitz February 14 Late 2023"]
[White "Paravyan, David"]
[Black "Livaic, Leon"]
[WhiteFideId "4194985"]
[BlackFideId "14531534"]
[WhiteElo "2601"]
[BlackElo "2579"]
[Result "0-1"]
[Round "05"]
[TimeControl "180+2"]
[Date "2023.02.14"]
[WhiteClock "0:00:06"]
[BlackClock "0:00:09"]

1. e4 {[%clk 0:02:56]}  e6 {[%clk 0:03:00]} 2. d4 {[%clk 0:02:56]}  d5 {[%clk 0:03:01]} 3. exd5 {[%clk 0:02:57]}  exd5 {[%clk 0:03:01]} 4. Nf3 {[%clk 0:02:55]}  Nf6 {[%clk 0:03:01]} 5. Bd3 {[%clk 0:02:56]}  Bd6 {[%clk 0:03:02]} 6. Qe2+ {[%clk 0:02:56]}  Be6 {[%clk 0:03:02]} 7. Ng5 {[%clk 0:02:55]}  Qe7 {[%clk 0:03:03]} 8. Nxe6 {[%clk 0:02:54]}  Qxe6 {[%clk 0:03:04]} 9. O-O {[%clk 0:02:52]}  Qxe2 {[%clk 0:02:59]} 10. Bxe2 {[%clk 0:02:53]}  O-O {[%clk 0:02:58]} 11. Bf3 {[%clk 0:02:52]}  c6 {[%clk 0:02:54]} 12. Re1 {[%clk 0:02:50]}  Nbd7 {[%clk 0:02:54]} 13. g3 {[%clk 0:02:38]}  Rfe8 {[%clk 0:02:54]} 14. Rxe8+ {[%clk 0:02:35]}  Rxe8 {[%clk 0:02:53]} 15. Kf1 {[%clk 0:02:36]}  Ne4 {[%clk 0:02:45]} 16. c3 {[%clk 0:02:28]}  f5 {[%clk 0:02:40]} 17. a4 {[%clk 0:02:13]}  a5 {[%clk 0:02:23]} 18. Na3 {[%clk 0:02:10]}  Ndf6 {[%clk 0:02:18]} 19. Nc2 {[%clk 0:02:07]}  Ng4 {[%clk 0:01:54]} 20. Bxg4 {[%clk 0:01:58]}  fxg4 {[%clk 0:01:55]} 21. Be3 {[%clk 0:01:58]}  Kf7 {[%clk 0:01:40]} 22. Ne1 {[%clk 0:01:58]}  h5 {[%clk 0:01:40]} 23. Nd3 {[%clk 0:01:59]}  g5 {[%clk 0:01:26]} 24. Kg2 {[%clk 0:01:57]}  Kg6 {[%clk 0:01:26]} 25. Re1 {[%clk 0:01:30]}  Rb8 {[%clk 0:01:20]} 26. h3 {[%clk 0:01:00]}  Re8 {[%clk 0:01:04]} 27. hxg4 {[%clk 0:00:58]}  hxg4 {[%clk 0:01:05]} 28. Bc1 {[%clk 0:00:54]}  Rf8 {[%clk 0:01:05]} 29. Re2 {[%clk 0:00:51]}  Rf3 {[%clk 0:00:58]} 30. Ne1 {[%clk 0:00:48]}  Rf8 {[%clk 0:00:57]} 31. Nc2 {[%clk 0:00:47]}  Kh5 {[%clk 0:00:31]} 32. c4 {[%clk 0:00:42]}  Nf6 {[%clk 0:00:18]} 33. Re6 {[%clk 0:00:42]}  Ne4 {[%clk 0:00:11]} 34. Be3 {[%clk 0:00:38]}  Rf6 {[%clk 0:00:07]} 35. Re8 {[%clk 0:00:32]}  Rf8 {[%clk 0:00:07]} 36. Re6 {[%clk 0:00:23]}  Rf6 {[%clk 0:00:07]} 37. cxd5 {[%clk 0:00:24]}  cxd5 {[%clk 0:00:07]} 38. Re8 {[%clk 0:00:24]}  Rf8 {[%clk 0:00:07]} 39. Rxf8 {[%clk 0:00:23]}  Bxf8 {[%clk 0:00:08]} 40. Ne1 {[%clk 0:00:24]}  Kg6 {[%clk 0:00:08]} 41. Nd3 {[%clk 0:00:24]}  Kf5 {[%clk 0:00:07]} 42. Kf1 {[%clk 0:00:25]}  Nd6 {[%clk 0:00:06]} 43. Ke2 {[%clk 0:00:22]}  b6 {[%clk 0:00:05]} 44. b3 {[%clk 0:00:20]}  Ke4 {[%clk 0:00:05]} 45. Ne5 {[%clk 0:00:17]}  Nf5 {[%clk 0:00:06]} 46. Nxg4 {[%clk 0:00:07]}  Nxd4+ {[%clk 0:00:05]} 47. Kd1 {[%clk 0:00:06]}  Nxb3 {[%clk 0:00:05]} 48. Bxb6 {[%clk 0:00:06]}  Kf3 {[%clk 0:00:04]} 49. Nf6 {[%clk 0:00:06]}  d4 {[%clk 0:00:03]} 50. Kc2 {[%clk 0:00:06]}  Nc5 {[%clk 0:00:02]} 51. Nh7 {[%clk 0:00:06]}  Be7 {[%clk 0:00:02]} 52. Bxc5 {[%clk 0:00:07]}  Bxc5 {[%clk 0:00:02]} 53. Nxg5+ {[%clk 0:00:07]}  Ke2 {[%clk 0:00:02]} 54. Ne4 {[%clk 0:00:04]}  d3+ {[%clk 0:00:03]} 55. Kb3 {[%clk 0:00:03]}  Bxf2 {[%clk 0:00:03]} 56. g4 {[%clk 0:00:03]}  Be3 {[%clk 0:00:02]} 57. g5 {[%clk 0:00:02]}  Kf3 {[%clk 0:00:03]} 58. g6 {[%clk 0:00:02]}  Bd4 {[%clk 0:00:03]} 59. g7 {[%clk 0:00:02]}  Bxg7 {[%clk 0:00:03]} 60. Nd2+ {[%clk 0:00:03]}  Ke2 {[%clk 0:00:04]} 61. Nc4 {[%clk 0:00:01]}  d2 {[%clk 0:00:04]} 62. Nxd2 {[%clk 0:00:01]}  Kxd2 {[%clk 0:00:05]} 63. Kc4 {[%clk 0:00:01]}  Bc3 {[%clk 0:00:05]} 64. Kb3 {[%clk 0:00:02]}  Bb4 {[%clk 0:00:06]} 65. Kb2 {[%clk 0:00:02]}  Kd3 {[%clk 0:00:06]} 66. Kb3 {[%clk 0:00:03]}  Kd4 {[%clk 0:00:07]} 67. Kb2 {[%clk 0:00:04]}  Kc4 {[%clk 0:00:08]} 68. Ka2 {[%clk 0:00:05]}  Bc5 {[%clk 0:00:08]} 69. Kb2 {[%clk 0:00:06]}  Kb4 {[%clk 0:00:09]} 0-1


[Site "https://www.chess.com"]

[Event "Titled Tuesday Blitz February 14 Late 2023"]
[White "Perez Ponsa, Federico"]
[Black "Deac, Bogdan-Daniel"]
[WhiteFideId "117927"]
[BlackFideId "1226380"]
[WhiteElo "2532"]
[BlackElo "2700"]
[Result "1-0"]
[Round "05"]
[TimeControl "180+2"]
[Date "2023.02.14"]
[WhiteClock "0:00:05"]
[BlackClock "0:00:01"]

1. e4 {[%clk 0:02:59]}  c6 {[%clk 0:02:56]} 2. d4 {[%clk 0:02:58]}  d5 {[%clk 0:02:57]} 3. e5 {[%clk 0:02:58]}  Bf5 {[%clk 0:02:57]} 4. h4 {[%clk 0:02:59]}  h5 {[%clk 0:02:57]} 5. Bd3 {[%clk 0:02:59]}  Bxd3 {[%clk 0:02:57]} 6. Qxd3 {[%clk 0:03:00]}  e6 {[%clk 0:02:57]} 7. Nf3 {[%clk 0:03:00]}  Nh6 {[%clk 0:02:53]} 8. Bg5 {[%clk 0:02:59]}  Be7 {[%clk 0:02:52]} 9. Bxh6 {[%clk 0:02:44]}  Rxh6 {[%clk 0:02:52]} 10. c4 {[%clk 0:02:44]}  Rg6 {[%clk 0:02:42]} 11. cxd5 {[%clk 0:02:39]}  cxd5 {[%clk 0:02:40]} 12. g3 {[%clk 0:02:36]}  Qa5+ {[%clk 0:02:28]} 13. Nbd2 {[%clk 0:02:33]}  Qa6 {[%clk 0:02:27]} 14. Qxa6 {[%clk 0:02:26]}  bxa6 {[%clk 0:02:17]} 15. O-O-O {[%clk 0:02:24]}  Nc6 {[%clk 0:01:59]} 16. Kb1 {[%clk 0:01:57]}  Rb8 {[%clk 0:01:49]} 17. Nb3 {[%clk 0:01:51]}  Rg4 {[%clk 0:01:08]} 18. Rd2 {[%clk 0:01:48]}  a5 {[%clk 0:00:47]} 19. Rc1 {[%clk 0:01:47]}  Rb6 {[%clk 0:00:46]} 20. Rdc2 {[%clk 0:01:29]}  Kd7 {[%clk 0:00:43]} 21. Nc5+ {[%clk 0:01:29]}  Bxc5 {[%clk 0:00:39]} 22. Rxc5 {[%clk 0:01:30]}  f6 {[%clk 0:00:32]} 23. a3 {[%clk 0:01:27]}  Re4 {[%clk 0:00:26]} 24. R1c2 {[%clk 0:01:25]}  a4 {[%clk 0:00:18]} 25. Ka2 {[%clk 0:01:25]}  Rg4 {[%clk 0:00:17]} 26. R2c3 {[%clk 0:01:15]}  Re4 {[%clk 0:00:15]} 27. Rc2 {[%clk 0:01:03]}  Rg4 {[%clk 0:00:14]} 28. R2c3 {[%clk 0:00:57]}  Rg6 {[%clk 0:00:14]} 29. Rc2 {[%clk 0:00:58]}  Rh6 {[%clk 0:00:13]} 30. Ne1 {[%clk 0:00:42]}  fxe5 {[%clk 0:00:09]} 31. dxe5 {[%clk 0:00:27]}  Nxe5 {[%clk 0:00:10]} 32. Rc7+ {[%clk 0:00:24]}  Kd6 {[%clk 0:00:10]} 33. Rxa7 {[%clk 0:00:24]}  Rf6 {[%clk 0:00:09]} 34. Rxa4 {[%clk 0:00:21]}  Nc6 {[%clk 0:00:08]} 35. Nd3 {[%clk 0:00:20]}  e5 {[%clk 0:00:08]} 36. Rd2 {[%clk 0:00:13]}  Rf8 {[%clk 0:00:04]} 37. Nc1 {[%clk 0:00:08]}  Rfb8 {[%clk 0:00:03]} 38. Ne2 {[%clk 0:00:08]}  Ke6 {[%clk 0:00:04]} 39. f4 {[%clk 0:00:07]}  e4 {[%clk 0:00:04]} 40. Rc2 {[%clk 0:00:05]}  Kd6 {[%clk 0:00:03]} 41. Rd2 {[%clk 0:00:05]}  Ke6 {[%clk 0:00:03]} 42. Rc2 {[%clk 0:00:06]}  Rd8 {[%clk 0:00:02]} 43. Rd2 {[%clk 0:00:05]}  Kd6 {[%clk 0:00:01]} 44. Rxe4 {[%clk 0:00:04]}  Rdb8 {[%clk 0:00:01]} 45. Re3 {[%clk 0:00:05]}  Na5 {[%clk 0:00:01]} 46. Rc3 {[%clk 0:00:05]} 1-0


[Site "https://www.chess.com"]